[Event "*** Titled Tuesday Blitz"]
[Site "Chess.com"]
[Date "2020.05.19"]
[Round "1"]
[White "ValeriyGrinev"]
[Black "DDTerziev04"]
[Result "1-0"]
[WhiteElo "2559"]
[BlackElo "2259"]
[TimeControl "180+1"]
[EndTime "12:08:59 PDT"]
[Termination "ValeriyGrinev won on time"]

1. c4 {[%clk 0:03:00.9]} 1... Nf6 {[%clk 0:02:57.2]} 2. Nc3 {[%clk 0:03:00.3]}
2... g6 {[%clk 0:02:56.9]} 3. g3 {[%clk 0:03:00.4]} 3... Bg7 {[%clk 0:02:57.2]}
4. Bg2 {[%clk 0:03:01]} 4... O-O {[%clk 0:02:57.7]} 5. d3 {[%clk 0:02:57.6]}
5... d6 {[%clk 0:02:58.1]} 6. Bg5 {[%clk 0:02:55.8]} 6... Nc6 {[%clk 0:02:58.5]}
7. Qc1 {[%clk 0:02:54.2]} 7... e5 {[%clk 0:02:58.4]} 8. h4 {[%clk 0:02:53.3]}
8... h5 {[%clk 0:02:57.5]} 9. Nf3 {[%clk 0:02:45.8]} 9... Re8 {[%clk 0:02:56.6]}
10. Nd2 {[%clk 0:02:45.6]} 10... Ne7 {[%clk 0:02:48.4]} 11. O-O {[%clk 0:02:41]}
11... c6 {[%clk 0:02:47.9]} 12. Nde4 {[%clk 0:02:34.3]} 12... Nxe4 {[%clk
0:02:45.4]} 13. dxe4 {[%clk 0:02:35.2]} 13... Be6 {[%clk 0:02:40]} 14. b3 {[%clk
0:02:33.8]} 14... f5 {[%clk 0:02:29.3]} 15. Rd1 {[%clk 0:02:24.5]} 15... Qc7
{[%clk 0:01:58.5]} 16. Qa3 {[%clk 0:02:17]} 16... Nc8 {[%clk 0:01:39.9]} 17.
Rac1 {[%clk 0:02:06.2]} 17... Rf8 {[%clk 0:01:25.5]} 18. e3 {[%clk 0:01:54.6]}
18... Qf7 {[%clk 0:01:14]} 19. Rd2 {[%clk 0:01:31.8]} 19... b6 {[%clk
0:01:00.6]} 20. Qa4 {[%clk 0:01:22.5]} 20... Bd7 {[%clk 0:00:30.6]} 21. exf5
{[%clk 0:01:18.7]} 21... gxf5 {[%clk 0:00:20.4]} 22. Bxc6 {[%clk 0:01:17.7]}
22... Bxc6 {[%clk 0:00:19.1]} 23. Qxc6 {[%clk 0:01:18.6]} 23... Rb8 {[%clk
0:00:19.3]} 24. Qd5 {[%clk 0:01:14.5]} 24... Qxd5 {[%clk 0:00:16.9]} 25. Nxd5
{[%clk 0:01:15.4]} 25... Rb7 {[%clk 0:00:16]} 26. Rcd1 {[%clk 0:01:10.3]} 26...
Rff7 {[%clk 0:00:14.7]} 27. Nc3 {[%clk 0:01:10]} 27... Bf8 {[%clk 0:00:14.8]}
28. a4 {[%clk 0:00:58.2]} 28... a6 {[%clk 0:00:14.5]} 29. Kg2 {[%clk 0:00:56.9]}
29... Kg7 {[%clk 0:00:11.8]} 30. Nd5 {[%clk 0:00:56.3]} 30... Kg6 {[%clk
0:00:11.5]} 31. f3 {[%clk 0:00:56.5]} 31... Bh6 {[%clk 0:00:08.9]} 32. Bxh6
{[%clk 0:00:55.7]} 32... Kxh6 {[%clk 0:00:09.8]} 33. Nc3 {[%clk 0:00:55.9]}
33... Kg6 {[%clk 0:00:09.5]} 34. e4 {[%clk 0:00:56.3]} 34... f4 {[%clk
0:00:09.1]} 35. gxf4 {[%clk 0:00:55]} 35... Rxf4 {[%clk 0:00:10]} 36. Rg1 {[%clk
0:00:52.5]} 36... Kf7 {[%clk 0:00:09]} 37. Ne2 {[%clk 0:00:49.7]} 37... Rf6
{[%clk 0:00:07.9]} 38. Kf2 {[%clk 0:00:49.8]} 38... Ke8 {[%clk 0:00:07.8]} 39.
Ke3 {[%clk 0:00:50.1]} 39... Rbf7 {[%clk 0:00:07.3]} 40. Rg8+ {[%clk 0:00:49.7]}
40... Ke7 {[%clk 0:00:07.6]} 41. Ng1 {[%clk 0:00:46.1]} 41... Kd7 {[%clk
0:00:07.6]} 42. Rdg2 {[%clk 0:00:44.6]} 42... Ne7 {[%clk 0:00:07.3]} 43. R8g7
{[%clk 0:00:44.5]} 43... Nc6 {[%clk 0:00:07.3]} 44. Rxf7+ {[%clk 0:00:44.5]}
44... Rxf7 {[%clk 0:00:08.2]} 45. Ne2 {[%clk 0:00:44.4]} 45... a5 {[%clk
0:00:07.3]} 46. Rg5 {[%clk 0:00:43.8]} 46... Nb4 {[%clk 0:00:06.7]} 47. Rxh5
{[%clk 0:00:42]} 47... Nc2+ {[%clk 0:00:06.8]} 48. Kd2 {[%clk 0:00:42.3]} 48...
Nb4 {[%clk 0:00:07.1]} 49. Rf5 {[%clk 0:00:42.7]} 49... Rh7 {[%clk 0:00:07]} 50.
h5 {[%clk 0:00:43]} 50... Nc6 {[%clk 0:00:06]} 51. Ke3 {[%clk 0:00:42.2]} 51...
Ne7 {[%clk 0:00:06.2]} 52. Rg5 {[%clk 0:00:42]} 52... Kc6 {[%clk 0:00:06.5]} 53.
f4 {[%clk 0:00:42.3]} 53... Kc5 {[%clk 0:00:06.4]} 54. fxe5 {[%clk 0:00:41.4]}
54... dxe5 {[%clk 0:00:06.6]} 55. Rxe5+ {[%clk 0:00:42.3]} 55... Kc6 {[%clk
0:00:07.2]} 56. Nd4+ {[%clk 0:00:41.1]} 56... Kd7 {[%clk 0:00:05.7]} 57. Re6
{[%clk 0:00:35.6]} 57... Rxh5 {[%clk 0:00:02.7]} 58. Rxb6 {[%clk 0:00:35.3]}
58... Rh3+ {[%clk 0:00:02.9]} 59. Kf2 {[%clk 0:00:33.2]} 59... Nc8 {[%clk
0:00:02.8]} 60. Rb5 {[%clk 0:00:32.4]} 60... Nd6 {[%clk 0:00:02.4]} 61. Rd5
{[%clk 0:00:31.6]} 61... Ke7 {[%clk 0:00:01.1]} 62. Nf5+ {[%clk 0:00:31]} 62...
Nxf5 {[%clk 0:00:01.4]} 63. exf5 {[%clk 0:00:31.9]} 63... Rxb3 {[%clk
0:00:01.8]} 64. Rxa5 {[%clk 0:00:32.4]} 64... Rb4 {[%clk 0:00:02.5]} 65. Ke3
{[%clk 0:00:30.6]} 65... Rxc4 {[%clk 0:00:02.7]} 66. Kd3 {[%clk 0:00:31.3]}
66... Rb4 {[%clk 0:00:02.8]} 67. Kc3 {[%clk 0:00:31.6]} 67... Rb1 {[%clk
0:00:03.1]} 68. Rb5 {[%clk 0:00:30]} 68... Ra1 {[%clk 0:00:01.9]} 69. Kb4 {[%clk
0:00:30.3]} 69... Kf6 {[%clk 0:00:01.4]} 70. Ka5 {[%clk 0:00:30.4]} 70... Rc1
{[%clk 0:00:01.1]} 71. Rd5 {[%clk 0:00:30]} 71... Ra1 {[%clk 0:00:02]} 72. Kb5
{[%clk 0:00:30.1]} 72... Ra2 {[%clk 0:00:02.5]} 73. a5 {[%clk 0:00:30]} 73...
Rb2+ {[%clk 0:00:03]} 74. Ka6 {[%clk 0:00:30.1]} 74... Rb3 {[%clk 0:00:03.1]}
75. Ka7 {[%clk 0:00:30.1]} 75... Rb2 {[%clk 0:00:03.1]} 76. a6 {[%clk
0:00:30.5]} 76... Rb3 {[%clk 0:00:03.5]} 77. Ka8 {[%clk 0:00:30.9]} 77... Rb2
{[%clk 0:00:03.9]} 78. a7 {[%clk 0:00:31.5]} 78... Rb3 {[%clk 0:00:03.7]} 79.
Rd7 {[%clk 0:00:32]} 79... Kxf5 {[%clk 0:00:01.5]} 80. Rb7 {[%clk 0:00:32.3]}
1-0

[Event "*** Titled Tuesday Blitz"]
[Site "Chess.com"]
[Date "2020.05.19"]
[Round "1"]
[White "ramses135"]
[Black "Shivagami"]
[Result "1/2-1/2"]
[WhiteElo "2505"]
[BlackElo "2175"]
[TimeControl "180+1"]
[EndTime "12:08:59 PDT"]
[Termination "Game drawn by repetition"]

1. e4 {[%clk 0:02:36.3]} 1... c5 {[%clk 0:02:59.5]} 2. Nf3 {[%clk 0:02:34.3]}
2... d6 {[%clk 0:02:59.9]} 3. d4 {[%clk 0:02:30.9]} 3... cxd4 {[%clk 0:03:00.3]}
4. Nxd4 {[%clk 0:02:31.8]} 4... Nf6 {[%clk 0:03:00.4]} 5. Nc3 {[%clk 0:02:32.4]}
5... a6 {[%clk 0:03:00.8]} 6. Be2 {[%clk 0:02:32.3]} 6... e5 {[%clk 0:02:59.9]}
7. Nb3 {[%clk 0:02:32.8]} 7... Be6 {[%clk 0:02:59.6]} 8. O-O {[%clk 0:02:32.5]}
8... Be7 {[%clk 0:02:52.5]} 9. Be3 {[%clk 0:02:30.8]} 9... O-O {[%clk
0:02:50.7]} 10. Qd2 {[%clk 0:02:27]} 10... Nbd7 {[%clk 0:02:43.6]} 11. a4 {[%clk
0:02:26.9]} 11... Nb6 {[%clk 0:02:36.5]} 12. a5 {[%clk 0:02:26.7]} 12... Nc4
{[%clk 0:02:36.3]} 13. Bxc4 {[%clk 0:02:27.2]} 13... Bxc4 {[%clk 0:02:36.3]} 14.
Rfd1 {[%clk 0:02:28.1]} 14... Rc8 {[%clk 0:02:30.5]} 15. Nc1 {[%clk 0:02:23.2]}
15... Be6 {[%clk 0:02:19.4]} 16. Nd3 {[%clk 0:02:10.9]} 16... Ng4 {[%clk
0:02:17.4]} 17. Bb6 {[%clk 0:02:10.1]} 17... Qd7 {[%clk 0:02:12.2]} 18. f3
{[%clk 0:02:09.4]} 18... Nf6 {[%clk 0:02:09.4]} 19. Nb4 {[%clk 0:02:03.1]} 19...
h6 {[%clk 0:01:53.3]} 20. Rac1 {[%clk 0:01:59.3]} 20... Rc4 {[%clk 0:01:52.1]}
21. Ncd5 {[%clk 0:01:28.6]} 21... Nxd5 {[%clk 0:01:49.7]} 22. Nxd5 {[%clk
0:01:29.5]} 22... Bg5 {[%clk 0:01:48.5]} 23. Be3 {[%clk 0:01:28.8]} 23... Bxd5
{[%clk 0:01:17.3]} 24. Bxg5 {[%clk 0:01:11.5]} 24... Bxe4 {[%clk 0:01:04.1]} 25.
Bxh6 {[%clk 0:01:08.1]} 25... Bg6 {[%clk 0:00:54.7]} 26. Be3 {[%clk 0:01:01.5]}
26... Rd8 {[%clk 0:00:38]} 27. b3 {[%clk 0:00:52.1]} 27... Rc6 {[%clk
0:00:31.3]} 28. c4 {[%clk 0:00:49.7]} 28... f6 {[%clk 0:00:25.1]} 29. h3 {[%clk
0:00:40.1]} 29... Bf7 {[%clk 0:00:25.4]} 30. Qb4 {[%clk 0:00:37.7]} 30... d5
{[%clk 0:00:22.3]} 31. cxd5 {[%clk 0:00:21.8]} 31... Rxc1 {[%clk 0:00:22.5]} 32.
Bxc1 {[%clk 0:00:20.7]} 32... Bxd5 {[%clk 0:00:20.9]} 33. Qb6 {[%clk 0:00:18.4]}
33... Qd6 {[%clk 0:00:17.6]} 34. Be3 {[%clk 0:00:10.8]} 34... Qxb6 {[%clk
0:00:17.4]} 35. Bxb6 {[%clk 0:00:11.7]} 35... Rd7 {[%clk 0:00:17.9]} 36. b4
{[%clk 0:00:11.5]} 36... Bc6 {[%clk 0:00:18.1]} 37. Rc1 {[%clk 0:00:08.6]} 37...
Kf7 {[%clk 0:00:17.1]} 38. Rc2 {[%clk 0:00:07.7]} 38... Ke6 {[%clk 0:00:17.4]}
39. Kf2 {[%clk 0:00:07.9]} 39... Rd3 {[%clk 0:00:17]} 40. h4 {[%clk 0:00:07]}
40... Kd5 {[%clk 0:00:15.8]} 41. h5 {[%clk 0:00:07.2]} 41... Ke6 {[%clk
0:00:10]} 42. Ke2 {[%clk 0:00:05.7]} 42... Rb3 {[%clk 0:00:09.6]} 43. Bc5 {[%clk
0:00:04.8]} 43... Kf5 {[%clk 0:00:09.7]} 44. Kf2 {[%clk 0:00:03.8]} 44... Kg5
{[%clk 0:00:08.8]} 45. Bf8 {[%clk 0:00:02.3]} 45... Kxh5 {[%clk 0:00:08.2]} 46.
Bxg7 {[%clk 0:00:02.5]} 46... Kg6 {[%clk 0:00:09.1]} 47. Bf8 {[%clk 0:00:02.9]}
47... Kf7 {[%clk 0:00:09]} 48. Bc5 {[%clk 0:00:03.4]} 48... Ke6 {[%clk
0:00:09.6]} 49. Rd2 {[%clk 0:00:04]} 49... f5 {[%clk 0:00:10.1]} 50. Rd6+ {[%clk
0:00:04.1]} 50... Kf7 {[%clk 0:00:10.4]} 51. Rd2 {[%clk 0:00:03.7]} 51... f4
{[%clk 0:00:10]} 52. Re2 {[%clk 0:00:02.9]} 52... Ke6 {[%clk 0:00:10.1]} 53. Bd4
{[%clk 0:00:03.2]} 53... Rxb4 {[%clk 0:00:10.2]} 54. Bxe5 {[%clk 0:00:03.5]}
54... Kf5 {[%clk 0:00:10.6]} 55. Bc7 {[%clk 0:00:03.5]} 55... Bb5 {[%clk
0:00:08.7]} 56. Rd2 {[%clk 0:00:02.9]} 56... Bc4 {[%clk 0:00:06.9]} 57. Bb6
{[%clk 0:00:02.5]} 57... Ra4 {[%clk 0:00:06.2]} 58. Rc2 {[%clk 0:00:02.6]} 58...
Ra2 {[%clk 0:00:06.3]} 59. Rxa2 {[%clk 0:00:02.3]} 59... Bxa2 {[%clk 0:00:07.2]}
60. Bc7 {[%clk 0:00:03.2]} 60... Bc4 {[%clk 0:00:08.1]} 61. g3 {[%clk
0:00:03.5]} 61... fxg3+ {[%clk 0:00:07.8]} 62. Kxg3 {[%clk 0:00:04.4]} 62... Bb5
{[%clk 0:00:08.4]} 63. Bb6 {[%clk 0:00:04.9]} 63... Bc6 {[%clk 0:00:09]} 64. Kf2
{[%clk 0:00:05.8]} 64... Bb5 {[%clk 0:00:09.6]} 65. Kg3 {[%clk 0:00:06.7]} 65...
Bc6 {[%clk 0:00:10.1]} 66. Kf2 {[%clk 0:00:07.1]} 66... Bb5 {[%clk 0:00:10.7]}
67. Kg3 {[%clk 0:00:07.6]} 1/2-1/2

[Event "*** Titled Tuesday Blitz"]
[Site "Chess.com"]
[Date "2020.05.19"]
[Round "1"]
[White "Aya5ian"]
[Black "LionTheLeon_06"]
[Result "0-1"]
[WhiteElo "2352"]
[BlackElo "2661"]
[TimeControl "180+1"]
[EndTime "12:09:00 PDT"]
[Termination "LionTheLeon_06 won on time"]

1. e4 {[%clk 0:02:59]} 1... c5 {[%clk 0:02:59.5]} 2. Nf3 {[%clk 0:02:54.1]} 2...
d6 {[%clk 0:02:59.3]} 3. d4 {[%clk 0:02:51.7]} 3... cxd4 {[%clk 0:03:00.2]} 4.
Nxd4 {[%clk 0:02:51.4]} 4... Nf6 {[%clk 0:03:00.1]} 5. Nc3 {[%clk 0:02:51]} 5...
a6 {[%clk 0:03:00.1]} 6. Be2 {[%clk 0:02:49.6]} 6... e5 {[%clk 0:02:59.4]} 7.
Nb3 {[%clk 0:02:48.4]} 7... Be7 {[%clk 0:02:59.2]} 8. g4 {[%clk 0:02:47.9]} 8...
h6 {[%clk 0:02:55.2]} 9. Be3 {[%clk 0:02:41.5]} 9... b6 {[%clk 0:02:38.8]} 10.
f3 {[%clk 0:02:34.5]} 10... Bb7 {[%clk 0:02:37.4]} 11. Nd5 {[%clk 0:02:25.7]}
11... Bxd5 {[%clk 0:02:33]} 12. exd5 {[%clk 0:02:26.6]} 12... Nbd7 {[%clk
0:02:33.2]} 13. a4 {[%clk 0:02:15.9]} 13... Nh7 {[%clk 0:02:29.7]} 14. Bf2
{[%clk 0:02:02.6]} 14... Bh4 {[%clk 0:02:28.2]} 15. Bd3 {[%clk 0:01:35]} 15...
Bxf2+ {[%clk 0:02:26.2]} 16. Kxf2 {[%clk 0:01:35.9]} 16... Nhf6 {[%clk
0:02:18.2]} 17. c4 {[%clk 0:01:26.2]} 17... e4 {[%clk 0:02:09.8]} 18. fxe4
{[%clk 0:01:22.6]} 18... Ne5 {[%clk 0:02:09.3]} 19. h3 {[%clk 0:01:19.4]} 19...
h5 {[%clk 0:01:43.6]} 20. g5 {[%clk 0:01:12.2]} 20... Nh7 {[%clk 0:01:40.5]} 21.
h4 {[%clk 0:01:10.8]} 21... Nf8 {[%clk 0:01:37.2]} 22. Nd4 {[%clk 0:01:09]}
22... Nfg6 {[%clk 0:01:37.2]} 23. Nf5 {[%clk 0:01:05.4]} 23... Ng4+ {[%clk
0:01:36.1]} 24. Kg3 {[%clk 0:01:00.9]} 24... O-O {[%clk 0:01:34.6]} 25. Be2
{[%clk 0:00:59.5]} 25... N6e5 {[%clk 0:01:34.3]} 26. Qd4 {[%clk 0:00:57.4]}
26... f6 {[%clk 0:01:13.4]} 27. Rhf1 {[%clk 0:00:43.9]} 27... fxg5 {[%clk
0:01:07.3]} 28. Bxg4 {[%clk 0:00:43.5]} 28... gxh4+ {[%clk 0:01:05.8]} 29. Nxh4
{[%clk 0:00:32.5]} 29... Qg5 {[%clk 0:01:04]} 30. Nf5 {[%clk 0:00:19.8]} 30...
Rf6 {[%clk 0:00:27]} 31. Kh2 {[%clk 0:00:14.4]} 31... Nxg4+ {[%clk 0:00:26.3]}
32. Kg1 {[%clk 0:00:13.7]} 32... Ne3+ {[%clk 0:00:25.3]} 33. Kf2 {[%clk
0:00:13]} 33... Nxf1 {[%clk 0:00:21.8]} 34. Rxf1 {[%clk 0:00:13.9]} 34... Rxf5+
{[%clk 0:00:22.2]} 35. exf5 {[%clk 0:00:14.5]} 35... Qxf5+ {[%clk 0:00:22.9]}
36. Kg1 {[%clk 0:00:14.1]} 36... Qg6+ {[%clk 0:00:22.2]} 37. Kh2 {[%clk
0:00:14]} 37... Re8 {[%clk 0:00:22.9]} 38. Rg1 {[%clk 0:00:14]} 38... Re2+
{[%clk 0:00:22.9]} 39. Kh1 {[%clk 0:00:13.9]} 39... Qe4+ {[%clk 0:00:23.5]} 40.
Qxe4 {[%clk 0:00:13.6]} 40... Rxe4 {[%clk 0:00:24.4]} 41. b3 {[%clk 0:00:13.5]}
41... a5 {[%clk 0:00:24.6]} 42. Rg5 {[%clk 0:00:13.6]} 42... h4 {[%clk
0:00:24.7]} 43. Rg6 {[%clk 0:00:13.1]} 43... Re1+ {[%clk 0:00:24.6]} 44. Kh2
{[%clk 0:00:11.5]} 44... Re3 {[%clk 0:00:23]} 45. Rxd6 {[%clk 0:00:11]} 45...
Rxb3 {[%clk 0:00:23.5]} 46. Rc6 {[%clk 0:00:11]} 46... Kf7 {[%clk 0:00:23]} 47.
d6 {[%clk 0:00:11.1]} 47... Ke6 {[%clk 0:00:23]} 48. c5 {[%clk 0:00:11.3]} 48...
Kd5 {[%clk 0:00:15]} 49. Rc7 {[%clk 0:00:10.8]} 49... Ke6 {[%clk 0:00:14]} 50.
Re7+ {[%clk 0:00:08.2]} 50... Kf6 {[%clk 0:00:13.8]} 51. Rb7 {[%clk 0:00:07.7]}
51... Rc3 {[%clk 0:00:12]} 52. cxb6 {[%clk 0:00:06.9]} 52... Ke6 {[%clk
0:00:10.1]} 53. Rc7 {[%clk 0:00:06.8]} 53... Rb3 {[%clk 0:00:08.3]} 54. d7
{[%clk 0:00:06.9]} 54... Ke7 {[%clk 0:00:08.5]} 55. b7 {[%clk 0:00:07]} 55... g5
{[%clk 0:00:06.9]} 56. Rc5 {[%clk 0:00:06.2]} 56... Rb2+ {[%clk 0:00:04.2]} 57.
Kh3 {[%clk 0:00:04.9]} 57... Rb3+ {[%clk 0:00:04.3]} 58. Kg4 {[%clk 0:00:04.9]}
58... Kxd7 {[%clk 0:00:04.2]} 59. Rxg5 {[%clk 0:00:04.6]} 59... Rxb7 {[%clk
0:00:03.4]} 60. Rxa5 {[%clk 0:00:04.6]} 60... Rb4+ {[%clk 0:00:03.4]} 61. Kh3
{[%clk 0:00:03.8]} 61... Kc6 {[%clk 0:00:04.3]} 62. Rh5 {[%clk 0:00:02.3]} 62...
Rxa4 {[%clk 0:00:04.4]} 63. Rxh4 {[%clk 0:00:03.2]} 63... Ra2 {[%clk 0:00:05.3]}
64. Rg4 {[%clk 0:00:03]} 64... Kd5 {[%clk 0:00:05.9]} 65. Kh4 {[%clk 0:00:03.9]}
65... Ke6 {[%clk 0:00:06.5]} 66. Rg5 {[%clk 0:00:04.8]} 66... Kf6 {[%clk
0:00:06.9]} 67. Rg4 {[%clk 0:00:05.7]} 67... Rh2+ {[%clk 0:00:06.9]} 68. Kg3
{[%clk 0:00:04.6]} 68... Rh8 {[%clk 0:00:07.8]} 69. Rf4+ {[%clk 0:00:04.2]}
69... Ke5 {[%clk 0:00:08.3]} 70. Rg4 {[%clk 0:00:04.4]} 70... Ra8 {[%clk
0:00:08.9]} 71. Rg6 {[%clk 0:00:03.8]} 71... Ra3+ {[%clk 0:00:09]} 72. Kh4
{[%clk 0:00:03.1]} 72... Ra4+ {[%clk 0:00:09.2]} 73. Kh5 {[%clk 0:00:02.6]}
73... Kf5 {[%clk 0:00:08.5]} 0-1

[Event "*** Titled Tuesday Blitz"]
[Site "Chess.com"]
[Date "2020.05.19"]
[Round "1"]
[White "rakshi2005"]
[Black "RestartingChess"]
[Result "1-0"]
[WhiteElo "2283"]
[BlackElo "2549"]
[TimeControl "180+1"]
[EndTime "12:09:04 PDT"]
[Termination "rakshi2005 won by checkmate"]

1. e4 {[%clk 0:02:59.9]} 1... d5 {[%clk 0:03:00.1]} 2. exd5 {[%clk 0:02:55]}
2... Qxd5 {[%clk 0:03:01]} 3. Nc3 {[%clk 0:02:54.9]} 3... Qd6 {[%clk 0:03:00.9]}
4. d4 {[%clk 0:02:54.9]} 4... Nf6 {[%clk 0:03:00.7]} 5. Nf3 {[%clk 0:02:54.9]}
5... Nc6 {[%clk 0:03:00.7]} 6. g3 {[%clk 0:02:50.2]} 6... a6 {[%clk 0:03:00.8]}
7. Bg2 {[%clk 0:02:48.5]} 7... Bg4 {[%clk 0:03:01.1]} 8. O-O {[%clk 0:02:43.6]}
8... e6 {[%clk 0:03:01.6]} 9. Bf4 {[%clk 0:02:43.2]} 9... Qd8 {[%clk 0:03:01.7]}
10. h3 {[%clk 0:02:36]} 10... Bh5 {[%clk 0:02:58]} 11. Re1 {[%clk 0:02:25.3]}
11... Be7 {[%clk 0:02:55.9]} 12. Qd2 {[%clk 0:02:21.4]} 12... O-O {[%clk
0:02:55.5]} 13. Ne5 {[%clk 0:02:18]} 13... Nd5 {[%clk 0:02:42.3]} 14. Nxc6
{[%clk 0:02:11.1]} 14... bxc6 {[%clk 0:02:41.8]} 15. Ne2 {[%clk 0:01:56.8]}
15... Rb8 {[%clk 0:02:13.6]} 16. c4 {[%clk 0:01:52.6]} 16... Nb6 {[%clk
0:02:13.2]} 17. b3 {[%clk 0:01:51.8]} 17... c5 {[%clk 0:02:13.7]} 18. d5 {[%clk
0:01:41.8]} 18... Bf6 {[%clk 0:02:03.5]} 19. Rad1 {[%clk 0:01:39.6]} 19... e5
{[%clk 0:01:58.1]} 20. Be3 {[%clk 0:01:35.3]} 20... Qd6 {[%clk 0:01:55.6]} 21.
g4 {[%clk 0:01:31.7]} 21... Bg6 {[%clk 0:01:55.3]} 22. Ng3 {[%clk 0:01:29.9]}
22... Nd7 {[%clk 0:01:50.7]} 23. Be4 {[%clk 0:01:25.4]} 23... Bh4 {[%clk
0:01:41.9]} 24. Bxg6 {[%clk 0:01:10.5]} 24... hxg6 {[%clk 0:01:42.8]} 25. Ne4
{[%clk 0:01:10.1]} 25... Qe7 {[%clk 0:01:43.2]} 26. d6 {[%clk 0:01:09.7]} 26...
cxd6 {[%clk 0:01:42.6]} 27. Qxd6 {[%clk 0:01:09.6]} 27... Qxd6 {[%clk
0:01:16.3]} 28. Rxd6 {[%clk 0:01:06.9]} 28... Rb7 {[%clk 0:01:12.5]} 29. Nxc5
{[%clk 0:01:04]} 29... Nxc5 {[%clk 0:01:12.8]} 30. Bxc5 {[%clk 0:01:04.9]} 30...
Bf6 {[%clk 0:01:08.3]} 31. Rd5 {[%clk 0:01:01.7]} 31... Re8 {[%clk 0:01:05.8]}
32. f3 {[%clk 0:01:00.8]} 32... Rc7 {[%clk 0:00:59]} 33. Bd6 {[%clk 0:00:58.4]}
33... Rc6 {[%clk 0:00:58.3]} 34. Bxe5 {[%clk 0:00:57.1]} 34... Rce6 {[%clk
0:00:58.4]} 35. f4 {[%clk 0:00:55.9]} 35... g5 {[%clk 0:00:58.9]} 36. Red1
{[%clk 0:00:43]} 36... gxf4 {[%clk 0:00:43]} 37. Bxf4 {[%clk 0:00:41.8]} 37...
Re2 {[%clk 0:00:43.3]} 38. R5d2 {[%clk 0:00:41]} 38... Bc3 {[%clk 0:00:38.2]}
39. Rxe2 {[%clk 0:00:34.7]} 39... Rxe2 {[%clk 0:00:38.3]} 40. a3 {[%clk
0:00:25.1]} 40... Ra2 {[%clk 0:00:38]} 41. Bd6 {[%clk 0:00:20]} 41... Bb2 {[%clk
0:00:34.1]} 42. a4 {[%clk 0:00:18.6]} 42... Bc3 {[%clk 0:00:34.6]} 43. Rb1
{[%clk 0:00:14.2]} 43... f6 {[%clk 0:00:32.7]} 44. b4 {[%clk 0:00:11]} 44...
Rxa4 {[%clk 0:00:31.6]} 45. b5 {[%clk 0:00:11.2]} 45... axb5 {[%clk 0:00:16.7]}
46. cxb5 {[%clk 0:00:11.1]} 46... Bd4+ {[%clk 0:00:17.2]} 47. Kg2 {[%clk
0:00:11]} 47... Bb6 {[%clk 0:00:17.8]} 48. Rc1 {[%clk 0:00:08.1]} 48... Ra2+
{[%clk 0:00:18.2]} 49. Kf3 {[%clk 0:00:07.7]} 49... Rb2 {[%clk 0:00:18.8]} 50.
Rc8+ {[%clk 0:00:06.7]} 50... Kf7 {[%clk 0:00:18.7]} 51. Rb8 {[%clk 0:00:07]}
51... Ba5 {[%clk 0:00:18.2]} 52. Bc5 {[%clk 0:00:04.5]} 52... Ke6 {[%clk
0:00:18.7]} 53. b6 {[%clk 0:00:04.2]} 53... Kd5 {[%clk 0:00:18.4]} 54. Be3
{[%clk 0:00:03.8]} 54... Kc6 {[%clk 0:00:15.7]} 55. Rc8+ {[%clk 0:00:03.5]}
55... Kb7 {[%clk 0:00:15.2]} 56. Rc7+ {[%clk 0:00:03.6]} 56... Ka6 {[%clk
0:00:15.7]} 57. Ra7+ {[%clk 0:00:03.6]} 57... Kb5 {[%clk 0:00:13.6]} 58. b7
{[%clk 0:00:03.9]} 58... Ka4 {[%clk 0:00:12.8]} 59. Bf4 {[%clk 0:00:02]} 59...
Rb3+ {[%clk 0:00:13.5]} 60. Kg2 {[%clk 0:00:01.7]} 60... Rb2+ {[%clk 0:00:13.7]}
61. Kg3 {[%clk 0:00:02.1]} 61... Rxb7 {[%clk 0:00:11.8]} 62. Rxb7 {[%clk
0:00:01.9]} 62... Be1+ {[%clk 0:00:12]} 63. Kf3 {[%clk 0:00:01.8]} 63... g5
{[%clk 0:00:12.9]} 64. Rf7 {[%clk 0:00:02.2]} 64... f5 {[%clk 0:00:13.8]} 65.
gxf5 {[%clk 0:00:02.3]} 65... Bd2 {[%clk 0:00:14.7]} 66. Ke4 {[%clk 0:00:02.4]}
66... Bxf4 {[%clk 0:00:15.6]} 67. f6 {[%clk 0:00:02.8]} 67... Kb5 {[%clk
0:00:16.5]} 68. Rb7+ {[%clk 0:00:02.9]} 68... Kc6 {[%clk 0:00:17.4]} 69. f7
{[%clk 0:00:03.6]} 69... Kxb7 {[%clk 0:00:17.4]} 70. f8=Q {[%clk 0:00:03.7]}
70... Kc6 {[%clk 0:00:18.3]} 71. Qf7 {[%clk 0:00:04]} 71... Kd6 {[%clk
0:00:18.6]} 72. Kf5 {[%clk 0:00:04.9]} 72... Kc5 {[%clk 0:00:17.7]} 73. Kg4
{[%clk 0:00:05.8]} 73... Kd4 {[%clk 0:00:18.6]} 74. Qf5 {[%clk 0:00:05.7]} 74...
Ke3 {[%clk 0:00:18.9]} 75. h4 {[%clk 0:00:06.1]} 75... gxh4 {[%clk 0:00:18.8]}
76. Qxf4+ {[%clk 0:00:06.2]} 76... Kd3 {[%clk 0:00:19.7]} 77. Kxh4 {[%clk
0:00:06.6]} 77... Ke2 {[%clk 0:00:20.6]} 78. Kg3 {[%clk 0:00:07.5]} 78... Kd3
{[%clk 0:00:21.5]} 79. Qf3+ {[%clk 0:00:07.7]} 79... Kd2 {[%clk 0:00:21.8]} 80.
Kf4 {[%clk 0:00:08.6]} 80... Ke1 {[%clk 0:00:22.4]} 81. Qe3+ {[%clk 0:00:06.3]}
81... Kf1 {[%clk 0:00:21.9]} 82. Qd2 {[%clk 0:00:06.2]} 82... Kg1 {[%clk
0:00:21.1]} 83. Qe2 {[%clk 0:00:06.4]} 83... Kh1 {[%clk 0:00:22]} 84. Kg3 {[%clk
0:00:06.9]} 84... Kg1 {[%clk 0:00:18.8]} 85. Qe1# {[%clk 0:00:07.8]} 1-0